fUST/lending_fUST_20260226
["ID","MTS","AMOUNT","RATE_DAILY","PERIOD"]
[406658170,1772041832278,-500.0,0.0001369,2]
[406658171,1772041832287,-500.0,0.0001369,2]
[406658172,1772041832297,-234.77130461,0.0001369,2]
[406658173,1772041832306,-500.0,0.0001369,2]
[406658175,1772041832315,-500.0,0.0001369,2]
[406658177,1772041832324,-500.0,0.0001369,2]
[406658178,1772041832333,-500.0,0.0001369,2]
[406658180,1772041832342,-500.0,0.0001369,2]
[406658182,1772041832356,-549.97310339,0.0001369,2]
[406658184,1772041832365,-500.0,0.0001369,2]
[406658186,1772041832374,-187.08061028,0.0001369,2]
[406658187,1772041832382,-500.0,0.0001369,2]
[406658189,1772041832393,-500.0,0.0001369,2]
[406658191,1772041832401,-500.0,0.0001369,2]
[406658193,1772041832410,-500.0,0.0001369,2]
[406658195,1772041832419,-500.0,0.0001369,2]
[406658197,1772041832428,-500.0,0.0001369,2]
[406658199,1772041832438,-500.0,0.0001369,2]
[406658201,1772041832447,-500.0,0.0001369,2]
[406658203,1772041832456,-500.0,0.0001369,2]
[406658205,1772041832465,-500.0,0.0001369,2]
[406658207,1772041832475,-500.0,0.0001369,2]
[406658209,1772041832484,-500.0,0.0001369,2]
[406658211,1772041832493,-500.0,0.0001369,2]
[406658213,1772041832502,-500.0,0.0001369,2]
[406658215,1772041832511,-500.0,0.0001369,2]
[406658217,1772041832521,-612.48894888,0.0001369,2]
[406658219,1772041832530,-500.0,0.0001369,2]
[406658221,1772041832540,-500.0,0.0001369,2]
[406658223,1772041832549,-500.0,0.0001369,2]
[406658224,1772041832559,-500.0,0.0001369,2]
[406658225,1772041832581,-500.0,0.0001369,2]
[406658226,1772041832590,-500.0,0.0001369,2]
[406658227,1772041832601,-500.0,0.0001369,2]
[406658228,1772041832610,-500.0,0.0001369,2]
[406658229,1772041832622,-612.94174142,0.0001369,2]
[406658230,1772041832630,-507.03995546,0.00013691,2]
[406658231,1772041832640,-500.0,0.00013698,2]
[406658232,1772041832650,-263.91976586,0.00013698,2]
[406658233,1772041832659,-500.0,0.00013698,2]
[406658234,1772041832668,-500.0,0.00013698,2]
[406658235,1772041832677,-500.0,0.00013698,2]
[406658236,1772041832686,-500.0,0.00013698,2]
[406658237,1772041832696,-500.0,0.00013698,2]
[406658238,1772041832706,-500.0,0.00013698,2]
[406658239,1772041832715,-500.0,0.00013698,2]
[406658240,1772041832725,-500.0,0.00013698,2]
[406658241,1772041832735,-473.53147907,0.00013698,2]
[406658242,1772041832744,-542.65094501,0.00013698,2]
[406658243,1772041832754,-500.0,0.00013698,2]
[406658244,1772041832764,-249.22372296,0.00013699,2]
[406658245,1772041832774,-300.0,0.00013969,2]
[406658246,1772041832784,-300.0,0.00013969,2]
[406658247,1772041832794,-300.0,0.00013969,2]
[406658248,1772041832803,-300.0,0.00013969,2]
[406658249,1772041832813,-300.0,0.00013969,2]
[406658250,1772041832823,-300.0,0.00013969,2]
[406658251,1772041832832,-1677.8526808,0.00014175,2]
[406658252,1772041832842,-500.0,0.00014368,2]
[406658253,1772041832852,-187.18584781,0.00014368,2]
[406658254,1772041832862,-504.22557757,0.00014794,2]
[406658255,1772041832871,-271.1110639,0.0001491,2]
[406658256,1772041832880,-420.0,0.00015002,2]
[406658257,1772041832889,-408.63832148,0.00015136,2]
[406658258,1772041832899,-635.66888657,0.000157,30]
[406658259,1772041832909,-250.0,0.00015811,2]
[406658260,1772041832919,-725.1684,0.00016117,120]
[406658261,1772041832928,-587.0,0.00016441,2]
[406658262,1772041832938,-620.78344433,0.00016485,30]
[406658263,1772041832947,-470.97298069,0.00017136,2]
[406658264,1772041832957,-170.73,0.00017685,2]
[406658265,1772041832966,-180.34,0.00017757,2]
[406658266,1772041832976,-823.0,0.00018018,2]
[406658267,1772041832985,-500.0,0.00018095,2]
[406658268,1772041832995,-1095.53409594,0.00018989,2]
[406658269,1772041833005,-533.3076399,0.00019136,2]
[406658270,1772041833015,-168.0,0.00019473,2]
[406658271,1772041833025,-677.0,0.00019746,2]
[406658272,1772041833034,-1424.274658,0.0001976,5]
[406658273,1772041833044,-1000.0,0.0001978,5]
[406658274,1772041833053,-1000.0,0.000198,5]
[406658275,1772041833063,-1000.0,0.0001982,5]
[406658276,1772041833073,-1000.0,0.0001984,5]
[406658277,1772041833082,-1000.0,0.0001986,5]
[406658278,1772041833091,-1000.0,0.0001988,5]
[406658279,1772041833101,-168.0,0.00019881,2]
[406658280,1772041833110,-1000.0,0.000199,5]
[406658281,1772041833119,-900.68710692,0.0001992,5]
[406658316,1772041838211,-7851.86594783,0.0001369,2]
[406658323,1772041838266,-22180.0925861,0.0001369,2]
[406658326,1772041838275,-1646.16881586,0.00015847,2]
[406658329,1772041838285,-99.31289308,0.0001992,5]
[406658334,1772041838294,-165.40293696,0.00019922,2]
[406658336,1772041838304,-85974.76904205,0.00019922,2]
[406658338,1772041838315,-259.22668818,0.00019922,2]
[406658649,1772041843392,-1646.16881586,0.00018097,2]
[406658650,1772041843403,-92.82743358,0.00019922,2]
[406658651,1772041843414,-2662.10386034,0.00019922,2]
[406658652,1772041843424,-2180.0,0.00019923,2]
[406658653,1772041843434,-430.0,0.00019923,2]
[406658654,1772041843444,-1000.0,0.0001994,5]
[406658655,1772041843453,-1000.0,0.0001996,5]
[406658656,1772041843462,-1000.0,0.0001998,5]
[406658657,1772041843472,-151.75701313,0.0002,2]
[406658658,1772041843482,-1000.0,0.0002,5]
[406658659,1772041843492,-181.40144978,0.0002,2]
[406658660,1772041843501,-326.5226096,0.0002,2]
[406658661,1772041843510,-301.99464054,0.0002,2]
[406658662,1772041843519,-533.88981491,0.00020022,2]
[406658663,1772041843528,-1957.856,0.00020022,2]
[406658664,1772041843538,-500.0,0.00020022,2]
[406658665,1772041843547,-250.0,0.00020022,2]
[406658666,1772041843558,-500.0,0.00020022,2]
[406658667,1772041843567,-151.0,0.00020022,2]
[406658668,1772041843576,-250.0,0.00020022,2]
[406658669,1772041843587,-500.0,0.00020022,2]
[406658670,1772041843596,-151.0,0.00020022,2]
[406658671,1772041843605,-250.0,0.00020022,2]
[406658672,1772041843614,-500.0,0.00020022,2]
[406658673,1772041843624,-644.79446246,0.00020022,2]
[406658674,1772041843633,-341.06032845,0.00020022,2]
[406658676,1772041843643,-435.05255758,0.00020022,2]
[406658677,1772041843652,-250.0,0.00020022,2]
[406658678,1772041843662,-250.0,0.00020022,2]
[406658679,1772041843671,-250.0,0.00020022,2]
[406658680,1772041843681,-250.0,0.00020022,2]
[406658681,1772041843690,-250.0,0.00020022,2]
[406658682,1772041843699,-250.0,0.00020022,2]
[406658683,1772041843708,-194.72792766,0.00020022,2]
[406658684,1772041843717,-201.93286099,0.00020022,2]
[406658685,1772041843726,-250.0,0.00020022,2]
[406658686,1772041843735,-209.40437684,0.00020022,2]
[406658687,1772041843744,-250.0,0.00020022,2]
[406658688,1772041843754,-250.0,0.00020022,2]
[406658689,1772041843763,-217.15233878,0.00020022,2]
[406658690,1772041843773,-225.18697532,0.00020022,2]
[406658691,1772041843782,-250.0,0.00020022,2]
[406658692,1772041843791,-233.51889341,0.00020022,2]
[406658693,1772041843801,-250.0,0.00020022,2]
[406658694,1772041843811,-242.15909246,0.00020022,2]
[406658695,1772041843821,-250.0,0.00020022,2]
[406658696,1772041843831,-251.11897888,0.00020022,2]
[406658697,1772041843842,-250.0,0.00020022,2]
[406658698,1772041843851,-260.4103811,0.00020022,2]
[406658699,1772041843863,-270.0455652,0.00020022,2]
[406658700,1772041843872,-280.03725112,0.00020022,2]
[406658701,1772041843882,-290.39862941,0.00020022,2]
[406658702,1772041843891,-301.1433787,0.00020022,2]
[406658703,1772041843901,-2030.296672,0.00020077,2]
[406658704,1772041843911,-2105.41764886,0.00020132,2]
[406658705,1772041843920,-168.0,0.00020147,2]
[406658706,1772041843930,-2183.31810187,0.00020187,2]
[406658707,1772041843941,-580.48463929,0.00020187,2]
[406658708,1772041843951,-2264.10087164,0.00020242,2]
[406658709,1772041843961,-1953.44384546,0.00020297,2]
[406658710,1772041843971,-472.63445469,0.0002057,2]
[406658711,1772041843980,-668.65185757,0.0002057,2]
[406658712,1772041843989,-693.3919763,0.00021118,2]
[406658713,1772041843999,-595.6422991,0.00021136,2]
[406658714,1772041844009,-165.40293696,0.00021262,2]
[406658715,1772041844018,-719.04747942,0.00021666,2]
[406658716,1772041844027,-150.0,0.00021918,2]
[406658717,1772041844037,-28464.29,0.00022,2]
[406658718,1772041844046,-745.65223616,0.00022214,2]
[406658719,1772041844056,-300.0,0.00022466,2]
[406658720,1772041844066,-165.40293696,0.00022601,2]
[406658721,1772041844076,-773.2413689,0.00022762,2]
[406658722,1772041844085,-382.04,0.00022923,2]
[406658723,1772041844094,-450.0,0.00023014,2]
[406658724,1772041844103,-657.97695831,0.00023136,2]
[406658725,1772041844112,-958.9,0.00023207,2]
[406658726,1772041844121,-801.85129955,0.0002331,2]
[406658727,1772041844131,-161.0,0.00023538,120]
[406658728,1772041844141,-600.0,0.00023562,2]
[406658729,1772041844150,-165.40293696,0.00023941,2]
[406658730,1772041844160,-760.50998756,0.0002411,2]
[406658731,1772041844170,-492.16193502,0.00024157,2]
[406658732,1772041844180,-7775.96334101,0.0002465,2]
[406658733,1772041844190,-150.0,0.00024658,2]
[406658734,1772041844199,-380.0,0.00024658,2]
[406658735,1772041844209,-200.0,0.00024658,2]
[406658736,1772041844219,-9000.0,0.000248,2]
[406658737,1772041844229,-369281.104636,0.000249,2]
[406658738,1772041844239,-1237.379109,0.0002498,5]
[406658739,1772041844249,-52754.4435194,0.0002498,2]
[406658740,1772041844259,-10506.95691964,0.00025,2]
[406658741,1772041844269,-159.46,0.00025,7]
[406658742,1772041844279,-1000.0,0.00025,5]
[406658743,1772041844289,-1538.95820807,0.00025044,2]
[406658744,1772041844299,-720.31161752,0.00025136,2]
[406658745,1772041844309,-28464.29,0.000252,2]
[406658746,1772041844319,-250.0,0.00025205,2]
[406658747,1772041844329,-165.40293696,0.0002528,2]
[406658748,1772041844339,-52754.4435194,0.0002529,2]
[406658749,1772041844348,-9000.0,0.000253,2]
[406658750,1772041844358,-11928.50723475,0.00025361,2]
[406658751,1772041844371,-105508.887039,0.0002537,2]
[406658752,1772041844381,-52754.4435194,0.0002538,2]
[406658753,1772041844392,-600.0,0.00025397,10]
[406658754,1772041844402,-14547.78095105,0.000254,7]
[406658755,1772041844411,-744.54351979,0.000254,7]
[406658756,1772041844420,-151.0,0.000254,12]
[406658757,1772041844430,-487.0,0.000254,2]
[406658758,1772041844439,-487.0,0.000254,2]
[406658759,1772041844449,-487.0,0.000254,2]
[406658760,1772041844458,-487.0,0.000254,2]
[406658761,1772041844467,-487.0,0.000254,2]
[406658762,1772041844477,-487.0,0.000254,2]
[406658763,1772041844487,-487.0,0.000254,2]
[406658764,1772041844496,-487.0,0.000254,2]
[406658765,1772041844504,-487.0,0.000254,2]
[406658766,1772041844515,-487.0,0.000254,2]
[406658767,1772041844524,-487.0,0.000254,2]
[406658768,1772041844535,-487.0,0.000254,2]
[406658769,1772041844544,-487.0,0.000254,2]
[406658770,1772041844553,-627.88,0.000254,2]
[406658771,1772041844564,-55580.93085213,0.00025444,2]
[406658772,1772041844577,-97384.16556338,0.00025444,2]
[406658773,1772041844602,-297.671768,0.00025444,2]
[406658789,1772041846320,-250.0,0.00020022,2]
[406658790,1772041846330,-250.0,0.00020022,2]
[406658791,1772041846342,-250.0,0.00020022,2]
[406658792,1772041846351,-250.0,0.00020022,2]
[406658793,1772041846364,-1646.16881586,0.00020346,2]
[406658794,1772041846374,-123416.74578572,0.00025444,2]
[406658795,1772041846385,-143125.80843357,0.00025444,2]
[406658799,1772042400879,151.0,0.00012,2]
[406658800,1772042413159,150.0,0.000136,30]
[406658801,1772042414369,261.52,0.0001156,11]
[406658802,1772042443313,-205.75,0.0001224,7]
[406658803,1772042443340,-205.75,0.0001224,8]
[406658804,1772042450359,151.0,0.00012,2]
[406658805,1772042480802,151.0,0.00012,2]
[406658806,1772042525163,151.0,0.00012,2]
[406658809,1772042561613,151.0,0.00012,2]
[406658810,1772042563422,1098.0,0.00012,120]
[406658812,1772042611421,151.0,0.00012,2]
[406658814,1772042661338,151.0,0.00012,2]
[406658815,1772042695166,151.0,0.00012,2]
[406658816,1772042729144,151.0,0.00012,2]
[406658821,1772042768760,151.0,0.00012,2]
[406658822,1772042815166,151.0,0.00012,2]
[406658823,1772042855115,151.0,0.00012,2]
[406658824,1772042888580,151.0,0.00012,2]
[406658825,1772042931388,151.0,0.00012,2]
[406658827,1772042953136,-300.0,0.00012999,2]
[406658828,1772042953157,-443.57358243,0.00012999,2]
[406658829,1772042953176,-133.03333544,0.00013,2]
[406658830,1772042971734,151.0,0.00012,2]
[406658833,1772043018310,151.0,0.00012,2]
[406658864,1772043032238,-300.0,0.00012999,2]
[406658866,1772043032251,-1990.05687719,0.00013,2]
[406658868,1772043032266,-1731.77743801,0.00013,2]
[406658878,1772043032345,-1270.06942531,0.00013,2]
[406658916,1772043038463,-4244.04558627,0.00013,2]
[406658917,1772043038475,-630.51920578,0.00013,2]
[406658918,1772043038484,-151.0,0.00013052,2]
[406658919,1772043038494,-1112.47021436,0.00013229,2]
[406658920,1772043038506,-1619.91048564,0.00013229,2]
[406658921,1772043038516,-500.0,0.00013273,2]
[406658922,1772043038525,-300.0,0.00013536,2]
[406658923,1772043038534,-300.0,0.00013536,2]
[406658924,1772043038544,-300.0,0.00013536,2]
[406658925,1772043038554,-300.0,0.00013536,2]
[406658926,1772043038563,-300.0,0.00013536,2]
[406658927,1772043038573,-300.0,0.00013536,2]
[406658928,1772043038582,-300.0,0.00013536,2]
[406658929,1772043038591,-300.0,0.00013536,2]
[406658930,1772043038601,-300.0,0.00013536,2]
[406658931,1772043038611,-300.0,0.00013536,2]
[406658932,1772043038620,-300.0,0.00013536,2]
[406658933,1772043038630,-300.0,0.00013536,2]
[406658934,1772043038639,-300.0,0.00013536,2]
[406658935,1772043038649,-300.0,0.00013536,2]
[406658936,1772043038658,-300.0,0.00013536,2]
[406658937,1772043038667,-1179.6525,0.00013626,2]
[406658938,1772043038677,-300.0,0.00013673,2]
[406658939,1772043038687,-500.0,0.00013696,2]
[406658940,1772043038697,-500.0,0.00013696,2]
[406658941,1772043038710,-500.0,0.00013696,2]
[406658942,1772043038719,-500.0,0.00013696,2]
[406658943,1772043038729,-500.0,0.00013696,2]
[406658944,1772043038739,-576.34229003,0.00013696,2]
[406658945,1772043038751,-309.15453187,0.00013696,2]
[406658946,1772043038760,-227.77478927,0.00013696,2]
[406658947,1772043038770,-500.0,0.00013696,2]
[406658948,1772043038781,-500.0,0.00013696,2]
[406658949,1772043038791,-384.77130461,0.00013696,2]
[406658950,1772043038801,-209.41903384,0.00013696,2]
[406658951,1772043038810,-500.0,0.00013698,2]
[406658952,1772043038820,-622.27792351,0.00013698,2]
[406658953,1772043038829,-500.0,0.00013698,2]
[406658954,1772043038838,-500.0,0.00013698,2]
[406658955,1772043038847,-500.0,0.00013698,2]
[406658956,1772043038858,-533.518818,0.00013699,2]
[406658957,1772043038867,-500.0,0.00013699,2]
[406658958,1772043038877,-600.0,0.00013806,2]
[406658959,1772043038887,-1000.0,0.00013821,2]
[406658960,1772043038897,-530.0521,0.00014023,2]
[406658961,1772043038907,-1484.32662778,0.00014045,2]
[406658962,1772043038916,-150.0,0.00014145,2]
[406658963,1772043038926,-150.0,0.00014145,2]
[406658964,1772043038935,-150.0,0.00014145,2]
[406658965,1772043038945,-150.0,0.00014145,2]
[406658966,1772043038954,-3062.56304808,0.00014175,2]
[406658967,1772043038964,-150.0,0.000142,2]
[406658968,1772043038974,-150.0,0.000142,2]
[406658969,1772043038984,-150.0,0.000142,2]
[406658970,1772043038994,-150.0,0.000142,2]
[406658971,1772043039004,-600.0,0.00014221,2]
[406658972,1772043039014,-1000.0,0.00014247,2]
[406658973,1772043039023,-150.0,0.00014255,2]
[406658974,1772043039033,-150.0,0.00014255,2]
[406658975,1772043039042,-150.0,0.00014255,2]
[406658976,1772043039051,-286.67504954,0.00014255,2]
[406658977,1772043039061,-420.0,0.00014256,2]
[406658978,1772043039070,-184.25309926,0.00014309,2]
[406658979,1772043039079,-156.67461009,0.00014309,2]
[406658980,1772043039089,-194.72818468,0.00014309,2]
[406658981,1772043039098,-1500.0,0.00014368,2]
[406658982,1772043039108,-238.1677,0.0001442,2]
[406658983,1772043039119,-500.0,0.00014495,2]
[406658984,1772043039128,-150.0,0.00014495,2]
[406658985,1772043039138,-500.0,0.0001455,2]
[406658986,1772043039147,-193.96881003,0.0001455,2]
[406658987,1772043039156,-500.0,0.00014605,2]
[406658988,1772043039166,-500.0,0.00014659,2]
[406658989,1772043039175,-300.0,0.00014714,2]
[406658990,1772043039184,-150.0,0.00014726,2]
[406658991,1772043039193,-900.0,0.00014768,2]
[406658992,1772043039203,-150.0,0.00014781,2]
[406658993,1772043039212,-265.80474327,0.00014836,2]
[406658994,1772043039221,-236.79877982,0.00014916,2]
[406658995,1772043039230,-523.41682726,0.00014999,2]
[406658996,1772043039240,-1024.66338445,0.00015,2]
[406658997,1772043039249,-727.63843642,0.00015,2]
[406658998,1772043039258,-720.0,0.00015186,2]
[406658999,1772043039267,-300.0,0.00015316,2]
[406659000,1772043039276,-587.0,0.00015634,2]
[406659001,1772043039286,-2000.0,0.000157,2]
[406659002,1772043039295,-2000.0,0.000157,2]
[406659003,1772043039305,-689.015935,0.000157,2]
[406659004,1772043039314,-813.76001386,0.000157,2]
[406659005,1772043039325,-1484.32662773,0.00015945,2]
[406659006,1772043039334,-226.01929045,0.00016,2]
[406659007,1772043039344,-381.7798,0.00016117,120]
[406659008,1772043039354,-152.6619,0.00016117,120]
[406659009,1772043039365,-864.0,0.00016705,2]
[406659010,1772043039375,-603.2600721,0.00016999,2]
[406659011,1772043039385,-2381.14822039,0.00017,2]
[406659012,1772043039395,-823.0,0.00017145,2]
[406659013,1772043039405,-374.34078752,0.00017177,2]
[406659014,1772043039415,-21354.78084929,0.000173,2]
[406659015,1772043039428,-150.0,0.00017808,2]
[406659016,1772043039438,-150.0,0.00017808,2]
[406659017,1772043039447,-1484.32662773,0.00017845,2]
[406659018,1772043039457,-748.97646104,0.000179,2]
[406659019,1772043039468,-181.975378,0.00017978,2]
[406659020,1772043039477,-333.13,0.00017987,3]
[406659021,1772043039487,-151903.90144174,0.00017997,2]
[406659022,1772043039496,-563582.62957731,0.00018,2]
[406659023,1772043039507,-487.0,0.00018,2]
[406659024,1772043039517,-487.0,0.00018,2]
[406659025,1772043039527,-487.0,0.00018,2]
[406659026,1772043039536,-487.0,0.00018,2]
[406659027,1772043039546,-487.0,0.00018,2]
[406659028,1772043039555,-487.0,0.00018,2]
[406659029,1772043039565,-487.0,0.00018,2]
[406659030,1772043039574,-487.0,0.00018,2]
[406659031,1772043039584,-487.0,0.00018,2]
[406659032,1772043039593,-487.0,0.00018,2]
[406659033,1772043039603,-487.0,0.00018,2]
[406659034,1772043039613,-487.0,0.00018,2]
[406659035,1772043039622,-573.08,0.00018,2]
[406659036,1772043039632,-357.0,0.00018137,2]
[406659037,1772043039641,-426.0,0.00018313,2]
[406659038,1772043039651,-153.0146214,0.00018356,2]
[406659039,1772043039661,-250.0,0.00018356,2]
[406659040,1772043039671,-1000.0,0.00018375,2]
[406659041,1772043039681,-500.0,0.00018512,2]
[406659042,1772043039691,-512.0,0.00018521,2]
[406659043,1772043039702,-852.0,0.00018802,2]
[406659044,1772043039723,-350.0,0.00018904,2]
[406659045,1772043039732,-683.10331693,0.00018999,2]
[406659046,1772043039743,-986.54672592,0.00019,2]
[406659047,1772043039752,-2272.8165936,0.00019,2]
[406659048,1772043039762,-852.8432,0.00019178,2]
[406659049,1772043039774,-728.0,0.00019202,2]
[406659050,1772043039783,-3145.22829735,0.00019205,5]
[406659051,1772043039793,-450.0,0.00019452,2]
[406659052,1772043039802,-170.0868,0.00019589,3]
[406659053,1772043039812,-1484.32662773,0.00019745,2]
[406659054,1772043039822,-157.36351018,0.00019759,2]
[406659055,1772043039831,-11890.4792661,0.000199,2]
[406659056,1772043039840,-500.0,0.00019921,2]
[406659057,1772043039851,-283.7800358,0.00019921,2]
[406659058,1772043039860,-1336.044819,0.0001996,5]
[406659059,1772043039870,-1000.0,0.0001998,5]
[406659060,1772043039879,-19323.21473802,0.0002,2]
[406659062,1772043039889,-5128.95646895,0.0002,2]
[406659063,1772043039898,-14784.36920816,0.0002,2]
[406659064,1772043039908,-54140.54895605,0.0002,120]
[406659065,1772043039917,-1000.0,0.0002,5]
[406659066,1772043039926,-507.38673283,0.0002,2]
[406659067,1772043039935,-648.69015021,0.0002,120]
[406659068,1772043039944,-202191.70350995,0.0002,2]
[406659139,1772043041060,-4053.44325648,0.0002,2]
[406659406,1772043043701,-4740.16662601,0.0002,2]
[406659409,1772043043716,-1257.06381332,0.0002,2]
[406659411,1772043043727,-445.37030241,0.0002,2]
[406659415,1772043043758,-1226.05301822,0.0002,2]
[406659606,1772043046362,-346.38830132,0.0002,2]
[406659607,1772043046373,-5664.4637703,0.0002,2]
[406659609,1772043046415,-1721.52235704,0.0002,2]
[406659611,1772043046427,-62324.48494043,0.0002,2]
[406659614,1772043046578,-1257.87188007,0.0002,2]
[406659615,1772043061580,151.0,0.00012,2]
[406659616,1772043101230,151.0,0.00012,2]
[406659617,1772043135169,151.0,0.000136,30]
[406659618,1772043168829,151.0,0.000136,30]
[406659621,1772043199097,151.0,0.00012,2]
[406659622,1772043245142,151.0,0.00012,2]
[406659623,1772043281040,151.0,0.00012,2]
[406659624,1772043311340,151.0,0.00012,2]
[406659625,1772043351382,151.0,0.00012,2]
[406659628,1772043388991,151.0,0.00012,2]
[406659686,1772044232807,-599.0,0.00012656,2]
[406659688,1772044232817,-376.5556878,0.00012656,2]
[406659690,1772044232826,-520.34640289,0.00012964,2]
[406659692,1772044232836,-300.0,0.00013272,2]
[406659694,1772044232846,-300.0,0.00013272,2]
[406659695,1772044232855,-300.0,0.00013272,2]
[406659697,1772044232865,-1200.0,0.00013272,2]
[406659699,1772044232875,-261.9129,0.00013273,14]
[406659700,1772044232884,-500.0,0.00013273,2]
[406659702,1772044232894,-500.0,0.00013273,2]
[406659703,1772044232904,-500.0,0.00013273,2]
[406659704,1772044232914,-500.0,0.00013273,2]
[406659705,1772044232923,-500.0,0.00013273,2]
[406659706,1772044232933,-500.0,0.00013273,2]
[406659707,1772044232942,-500.0,0.00013273,2]
[406659708,1772044232951,-9003.89356423,0.00013273,2]
[406659709,1772044232960,-500.0,0.00013273,2]
[406659710,1772044232970,-500.0,0.00013273,2]
[406659711,1772044232979,-500.0,0.00013273,2]
[406659712,1772044232988,-500.0,0.00013273,2]
[406659713,1772044232998,-500.0,0.00013273,2]
[406659714,1772044233007,-500.0,0.00013273,2]
[406659715,1772044233016,-500.0,0.00013273,2]
[406659716,1772044233025,-500.0,0.00013273,2]
[406659717,1772044233034,-525.80335472,0.00013291,2]
[406659718,1772044233044,-2504.20069742,0.00013292,2]
[406659719,1772044233053,-200.0,0.00013328,2]
[406659720,1772044233063,-832.0733,0.00013393,2]
[406659721,1772044233072,-500.0,0.00013534,2]
[406659722,1772044233083,-500.0,0.00013534,2]
[406659723,1772044233092,-313.25966753,0.00013534,2]
[406659724,1772044233103,-300.0,0.00013537,2]
[406659725,1772044233112,-300.0,0.00013537,2]
[406659726,1772044233121,-300.0,0.00013537,2]
[406659727,1772044233130,-300.0,0.00013537,2]
[406659728,1772044233140,-300.0,0.00013537,2]
[406659729,1772044233150,-300.0,0.00013537,2]
[406659730,1772044233160,-300.0,0.00013537,2]
[406659731,1772044233170,-300.0,0.00013537,2]
[406659732,1772044233179,-300.0,0.00013537,2]
[406659733,1772044233188,-300.0,0.00013537,2]
[406659734,1772044233197,-300.0,0.00013537,2]
[406659735,1772044233207,-300.0,0.00013537,2]
[406659736,1772044233216,-300.0,0.00013537,2]
[406659737,1772044233226,-300.0,0.00013537,2]
[406659738,1772044233235,-300.0,0.00013537,2]
[406659739,1772044233244,-150.0,0.00013673,2]
[406659740,1772044233255,-300.0,0.00013673,2]
[406659741,1772044233264,-198.67702345,0.00013689,2]
[406659742,1772044233273,-500.0,0.00013698,2]
[406659743,1772044233282,-263.86,0.00013698,2]
[406659744,1772044233291,-5384.0665063,0.00013699,2]
[406659745,1772044233301,-492.08047993,0.00013699,2]
[406659746,1772044233310,-500.0,0.00013699,2]
[406659747,1772044233320,-500.65490939,0.00013699,2]
[406659748,1772044233329,-500.66325347,0.00013699,2]
[406659749,1772044233339,-500.84327401,0.00013699,2]
[406659750,1772044233348,-500.0,0.00013699,2]
[406659751,1772044233358,-500.90423206,0.00013699,2]
[406659752,1772044233367,-500.0,0.00013699,2]
[406659753,1772044233377,-500.76870051,0.00013699,2]
[406659754,1772044233387,-500.0,0.00013699,2]
[406659755,1772044233397,-500.0,0.00013699,2]
[406659756,1772044233407,-500.0,0.00013699,2]
[406659757,1772044233416,-500.79462362,0.00013699,2]
[406659758,1772044233426,-500.0,0.00013699,2]
[406659759,1772044233435,-500.0,0.00013699,2]
[406659760,1772044233444,-500.0,0.00013699,2]
[406659761,1772044233454,-500.0,0.00013699,2]
[406659762,1772044233463,-511.40319057,0.00013699,2]
[406659763,1772044233473,-436.3008059,0.00013699,2]
[406659764,1772044233482,-500.0,0.00013699,2]
[406659765,1772044233491,-500.0,0.00013699,2]
[406659766,1772044233500,-500.71834181,0.00013699,2]